bitfinex-derivatives/quotes_BTCF0:USTF0_20210409
["timestamp","ask_amount","ask_price","bid_price","bid_amount"]
[1617960479287,1.17598547,57892.0,57891.0,1.04591891]
[1617960479691,2.17598547,57892.0,57891.0,1.04591891]
[1617960480392,2.17598547,57892.0,57891.0,3.91561891]
[1617960480393,1.17598547,57892.0,57891.0,3.91561891]
[1617960480693,1.17598547,57892.0,57891.0,4.21561891]
[1617960481993,1.17598547,57892.0,57891.0,3.91561891]
[1617960481994,1.14098547,57892.0,57891.0,3.91561891]
[1617960482394,1.14098547,57892.0,57891.0,4.21561891]
[1617960482395,1.17598547,57892.0,57891.0,4.21561891]
[1617960482594,1.10598547,57892.0,57891.0,4.21561891]
[1617960482794,1.17598547,57892.0,57891.0,4.21561891]
[1617960483598,1.06872892,57892.0,57891.0,4.21561891]
[1617960483848,1.06872892,57892.0,57891.0,4.33123891]
[1617960484004,0.55596934,57892.0,57891.0,4.33123891]
[1617960484915,0.55596934,57892.0,57891.0,4.77736747]
[1617960485797,0.55596934,57892.0,57891.0,4.47736747]
[1617960485997,0.55596934,57892.0,57891.0,4.77736747]
[1617960486199,0.55596934,57892.0,57891.0,4.33123891]
[1617960486799,0.55596934,57892.0,57891.0,4.03123891]
[1617960487001,0.55596934,57892.0,57891.0,4.33123891]
[1617960487701,0.55596934,57892.0,57891.0,4.77747438]
[1617960491004,0.55596934,57892.0,57891.0,4.47747438]
[1617960492005,0.55596934,57892.0,57891.0,4.77747438]
[1617960492207,0.55596934,57892.0,57891.0,4.33123891]
[1617960492505,0.55596934,57892.0,57891.0,4.77782666]
[1617960493615,0.105,57892.0,57891.0,4.77782666]
[1617960505621,0.105,57892.0,57891.0,1.90812666]
[1617960505836,0.105,57892.0,57891.0,1.79250666]
[1617960507625,0.105,57892.0,57891.0,1.34591891]
[1617960508032,0.105,57892.0,57891.0,1.79211978]
[1617960513629,0.10476308,57892.0,57891.0,1.79211978]
[1617960521343,0.10476308,57892.0,57891.0,4.70581978]
[1617960522045,0.10476308,57892.0,57891.0,4.79824511]
[1617960523547,0.10476308,57892.0,57891.0,1.88454511]
[1617960524149,0.10476308,57892.0,57891.0,1.79211978]
[1617960524951,0.10476308,57892.0,57891.0,1.34591891]
[1617960525252,0.10476308,57892.0,57891.0,1.79220167]
[1617960531457,0.07,57892.0,57891.0,1.79220167]
[1617960531659,0.10476308,57892.0,57891.0,1.79220167]
[1617960531978,0.03476308,57892.0,57891.0,1.79220167]
[1617960533258,0.10476308,57892.0,57891.0,1.79220167]
[1617960537763,0.10476308,57892.0,57891.0,2.29861224]
[1617960538263,0.10476308,57892.0,57891.0,1.79220167]
[1617960540265,0.10476308,57892.0,57891.0,5.20468167]
[1617960540665,0.10476308,57892.0,57891.0,5.80351945]
[1617960551974,0.10476308,57892.0,57891.0,5.6962629]
[1617960552474,0.10476308,57892.0,57891.0,5.80351945]
[1617960561791,3.79436308,57892.0,57891.0,2.51611945]
[1617960561990,3.79436308,57892.0,57891.0,2.39103945]
[1617960562691,3.79436308,57892.0,57891.0,2.29862123]
[1617960563091,3.79436308,57892.0,57891.0,1.99862123]
[1617960563495,3.79436308,57892.0,57891.0,1.49220167]
[1617960563892,3.79436308,57892.0,57891.0,1.79220167]
[1617960565296,0.10476308,57892.0,57891.0,1.79220167]
[1617960565496,0.10476308,57892.0,57891.0,5.33380167]
[1617960565897,0.10476308,57892.0,57891.0,5.42621398]
[1617960569808,0.10476308,57892.0,57891.0,5.93138666]
[1617960570120,0.10476308,57892.0,57891.0,6.04086666]
[1617960572910,0.10476308,57892.0,57891.0,5.53569398]
[1617960573508,0.10476308,57892.0,57891.0,6.04023015]
[1617960577113,0.10476308,57892.0,57891.0,5.93075015]
[1617960580714,0.07,57892.0,57891.0,5.93075015]
[1617960582117,0.10476308,57892.0,57891.0,5.93075015]
[1617960582318,0.03476308,57892.0,57891.0,5.93075015]
[1617960582718,0.10476308,57892.0,57891.0,5.93075015]
[1617960590934,0.10476308,57892.0,57891.0,5.63075015]
[1617960591364,0.10476308,57892.0,57891.0,5.93075015]
[1617960591759,0.10476308,57892.0,57891.0,5.42621398]
[1617960591934,0.10476308,57892.0,57891.0,1.88461398]
[1617960592334,2.78936308,57892.0,57891.0,1.88461398]
[1617960592736,2.78936308,57892.0,57891.0,1.79220167]
[1617960594037,0.10476308,57892.0,57891.0,1.79220167]
[1617960597941,0.10476308,57892.0,57891.0,5.92185173]
[1617960598642,0.10476308,57892.0,57891.0,6.01426031]
[1617960600941,0.10476308,57892.0,57891.0,5.50941025]
[1617960603145,0.10476308,57892.0,57891.0,6.01236818]
[1617960603946,0.10476308,57892.0,57891.0,5.50941025]
[1617960604245,0.19965308,57892.0,57891.0,5.50941025]
[1617960604444,0.19965308,57892.0,57891.0,6.01238358]
[1617960605047,0.19965308,57892.0,57891.0,5.50941025]
[1617960607747,0.19965308,57892.0,57891.0,6.01189699]
[1617960607948,0.10476308,57892.0,57891.0,6.01189699]
[1617960610048,0.10476308,57892.0,57891.0,5.50941025]
[1617960610861,0.10476308,57892.0,57891.0,5.20941025]
[1617960611251,0.10476308,57892.0,57891.0,5.50941025]
[1617960616757,1.10476308,57892.0,57891.0,5.50941025]
[1617960617157,0.10476308,57892.0,57891.0,5.50941025]
[1617960619560,1.10476308,57892.0,57891.0,5.50941025]
[1617960622260,0.10476308,57892.0,57891.0,1.58461025]
[1617960622460,5.96266308,57892.0,57891.0,1.04591891]
[1617960622861,6.41380983,57892.0,57891.0,1.04591891]
[1617960624664,6.41380983,57892.0,57891.0,0.68070859]
[1617960624864,6.41380983,57892.0,57891.0,0.57345204]
[1617960625566,6.41380983,57892.0,57891.0,0.27]
[1617960625966,6.41380983,57892.0,57889.0,0.30198283]
[1617960626365,5.96266308,57892.0,57891.0,0.27]
[1617960626664,4.96266308,57892.0,57890.0,0.27]
[1617960626867,6.41336924,57892.0,57891.0,0.27]
[1617960627167,4.96266308,57892.0,57890.0,0.57200575]
[1617960627365,1.0,57891.0,57890.0,0.57200575]
[1617960627566,1.0,57891.0,57887.0,0.3624069]
[1617960627567,2.5,57891.0,57889.0,0.30207412]
[1617960627966,1.5,57891.0,57890.0,0.27]
[1617960628565,1.95069838,57891.0,57890.0,0.27]
[1617960628766,2.95069838,57891.0,57890.0,0.27]
[1617960629867,2.95069838,57891.0,57888.0,0.30215551]
[1617960630067,2.95069838,57891.0,57890.0,0.01]
[1617960630267,1.95069838,57891.0,57890.0,0.01]
[1617960630468,1.9507053,57889.0,57888.0,0.30215551]
[1617960630969,1.60725655,57889.0,57888.0,0.31215551]
[1617960631169,2.18382136,57889.0,57888.0,0.31215551]
[1617960632371,3.18382136,57889.0,57888.0,0.31215551]
[1617960636776,2.18382136,57889.0,57888.0,0.01]
[1617960636977,3.18382136,57889.0,57888.0,0.01]
[1617960637179,3.18382136,57889.0,57887.0,0.26]
[1617960637578,3.18382136,57889.0,57888.0,0.02]
[1617960637778,2.60725655,57889.0,57886.0,0.27]
[1617960638178,3.05777805,57889.0,57888.0,0.27]
[1617960638377,3.05777805,57889.0,57885.0,0.30225653]
[1617960638378,3.05777805,57889.0,57886.0,0.27]
[1617960638779,3.05777805,57889.0,57888.0,0.27]
[1617960638978,3.05777805,57889.0,57886.0,0.27]
[1617960639178,1.95052147,57887.0,57886.0,0.27]
[1617960639478,1.95052147,57887.0,57885.0,0.30225653]
[1617960639680,4.8286,57886.0,57885.0,0.30225653]
[1617960639980,5.27912463,57886.0,57884.0,0.30246909]
[1617960640279,6.27912463,57886.0,57885.0,0.27]
[1617960640484,6.27912463,57886.0,57885.0,0.30248542]
[1617960640679,6.27912463,57886.0,57885.0,0.57248542]
[1617960640880,6.27912463,57886.0,57885.0,0.27]
[1617960641080,6.27912463,57886.0,57884.0,0.30253117]
[1617960641281,6.27912463,57886.0,57885.0,0.27]
[1617960641482,5.27912463,57886.0,57884.0,0.30253117]
[1617960641900,6.27912463,57886.0,57884.0,0.30253117]
[1617960642121,1.0,57885.0,57884.0,0.30253117]
[1617960642386,2.08186675,57885.0,57881.0,0.30276167]
[1617960642623,3.08186675,57885.0,57881.0,0.30276167]
[1617960642883,1.5,57881.0,57880.0,0.3028072]
[1617960643083,2.62104,57881.0,57880.0,0.3028072]
[1617960643284,2.72829655,57881.0,57877.0,0.30292245]
[1617960643783,2.95059232,57878.0,57877.0,0.30292245]
[1617960644185,2.95059232,57878.0,57877.0,0.27]
[1617960644585,2.95059232,57878.0,57877.0,0.30304997]
[1617960645087,2.95059232,57878.0,57877.0,0.56304997]
[1617960646786,5.48719232,57878.0,57877.0,0.56304997]
[1617960646987,3.98719232,57878.0,57877.0,0.56304997]
[1617960647992,3.5366,57878.0,57877.0,0.26]
[1617960648392,3.5366,57878.0,57876.0,0.57262297]
[1617960648792,3.5366,57878.0,57877.0,0.27]
[1617960648992,4.0366,57878.0,57876.0,0.30262297]
[1617960649291,5.0366,57878.0,57876.0,0.30262297]
[1617960649591,5.0366,57878.0,57877.0,0.27]
[1617960652796,5.0366,57878.0,57876.0,0.01]
[1617960652994,5.0366,57878.0,57877.0,0.27]
[1617960653195,4.0366,57878.0,57875.0,0.30310898]
[1617960653495,4.0366,57878.0,57876.0,0.27]
[1617960654095,1.0,57877.0,57875.0,0.01]
[1617960654295,1.5,57876.0,57875.0,0.01]
[1617960654496,1.5,57876.0,57874.0,0.30313984]
[1617960654696,1.5,57876.0,57875.0,0.27]
[1617960655501,2.5,57876.0,57875.0,0.27]
[1617960656200,2.5,57876.0,57873.0,0.30341439]
[1617960656499,1.5,57876.0,57875.0,0.01]
[1617960656700,1.5,57876.0,57873.0,0.30341439]
[1617960656900,2.5,57876.0,57873.0,0.30341439]
[1617960657100,2.5,57876.0,57875.0,0.27]
[1617960657301,2.5,57876.0,57874.0,0.27]
[1617960657600,2.5,57876.0,57875.0,0.27]
[1617960658003,2.5,57876.0,57874.0,0.57338672]
[1617960658302,2.5,57876.0,57875.0,0.27]
[1617960659404,2.5,57876.0,57872.0,0.27]
[1617960659605,2.5,57876.0,57873.0,0.30328154]
[1617960660005,2.5,57876.0,57873.0,0.57328154]
[1617960660206,2.5,57876.0,57873.0,0.30328154]
[1617960660506,2.5,57876.0,57874.0,0.27]
[1617960660805,1.5,57876.0,57874.0,0.27]
[1617960661305,1.10725655,57875.0,57874.0,0.27]
[1617960661506,2.60725655,57875.0,57874.0,0.27]
[1617960663010,2.60725655,57875.0,57874.0,0.57356103]
[1617960663408,2.60725655,57875.0,57874.0,0.30356103]
[1617960663809,2.60725655,57875.0,57874.0,0.57356103]
[1617960664709,2.60725655,57875.0,57874.0,0.27]
[1617960665109,2.60725655,57875.0,57873.0,0.30361739]
[1617960665310,2.60725655,57875.0,57874.0,0.30355685]
[1617960665512,4.42105655,57875.0,57874.0,0.57355685]
[1617960666112,4.42105655,57875.0,57874.0,0.27]
[1617960666514,5.42105655,57875.0,57873.0,0.30352318]
[1617960666812,5.42105655,57875.0,57874.0,0.27]
[1617960669127,5.42105655,57875.0,57873.0,0.01]
[1617960669419,5.42105655,57875.0,57874.0,0.27]
[1617960669820,5.42105655,57875.0,57873.0,0.27]
[1617960670021,5.42105655,57875.0,57874.0,0.27]
[1617960670320,5.42105655,57875.0,57873.0,0.27]
[1617960670724,4.42105655,57875.0,57874.0,0.27]
[1617960670922,1.0,57874.0,57872.0,0.30355246]
[1617960671121,1.5,57873.0,57872.0,0.30355246]
[1617960671422,1.5,57873.0,57869.0,0.30379473]
[1617960671423,4.0687,57873.0,57869.0,0.30379473]
[1617960671622,5.0687,57873.0,57869.0,0.30379473]
[1617960672021,2.5,57870.0,57869.0,0.30379473]
[1617960672223,2.5,57870.0,57868.0,0.30401253]
[1617960672724,2.5,57869.0,57866.0,0.30416669]
[1617960673025,1.0,57867.0,57866.0,0.30416669]
[1617960673223,1.12758,57867.0,57866.0,0.57416669]
[1617960673526,1.12758,57867.0,57866.0,0.30416669]
[1617960673527,1.23483655,57867.0,57866.0,0.30416669]
[1617960673723,2.73483655,57867.0,57866.0,0.57416669]
[1617960673925,2.73483655,57867.0,57866.0,0.63580848]
[1617960674825,2.73483655,57867.0,57866.0,1.00124564]
[1617960676827,2.73483655,57867.0,57866.0,0.57416669]
[1617960677027,5.32123655,57867.0,57866.0,0.57416669]
[1617960678028,5.32123655,57867.0,57866.0,0.27]
[1617960678428,5.32123655,57867.0,57865.0,0.30448229]
[1617960678828,5.32123655,57867.0,57866.0,0.27]
[1617960679029,5.32123655,57867.0,57866.0,0.57451854]
[1617960679230,2.73483655,57867.0,57866.0,0.57451854]
[1617960679429,2.73483655,57867.0,57866.0,0.30451854]
[1617960679829,6.01523655,57867.0,57866.0,0.57451854]
[1617960680232,6.01523655,57867.0,57866.0,0.27]
[1617960680631,6.01523655,57867.0,57865.0,0.30455547]
[1617960681034,6.01523655,57867.0,57866.0,0.27]
[1617960681234,2.73483655,57867.0,57866.0,0.27]
[1617960683433,2.73483655,57867.0,57866.0,0.57448454]
[1617960683835,2.73483655,57867.0,57866.0,0.30448454]
[1617960684235,2.73483655,57867.0,57866.0,0.57448454]
[1617960686538,1.73483655,57867.0,57866.0,0.57448454]
[1617960686736,2.73483655,57867.0,57866.0,0.57448454]
[1617960686936,5.66573655,57867.0,57866.0,0.57448454]
[1617960688037,5.66643655,57867.0,57866.0,0.57448454]
[1617960691544,6.11683412,57867.0,57866.0,0.27]
[1617960691944,6.11683412,57867.0,57865.0,0.01]
[1617960692144,6.11683412,57867.0,57865.0,0.31469282]
[1617960692343,3.18593412,57867.0,57866.0,0.27]
[1617960692544,6.15473655,57867.0,57865.0,0.30469282]
[1617960692944,6.15473655,57867.0,57866.0,0.27]
[1617960693145,5.60513258,57867.0,57866.0,0.27]
[1617960693545,6.15473655,57867.0,57865.0,0.31472837]
[1617960693947,6.15473655,57867.0,57865.0,0.30472837]
[1617960694450,3.18592746,57867.0,57866.0,0.27]
[1617960694748,5.28242746,57867.0,57866.0,0.27]
[1617960695047,6.28242746,57867.0,57864.0,0.30467398]
[1617960695247,6.28242746,57867.0,57863.0,0.30475754]
[1617960695449,1.5,57864.0,57863.0,0.30475754]
[1617960695749,1.5,57864.0,57862.0,0.30478381]
[1617960695947,1.5,57864.0,57845.0,0.7838]
[1617960695948,2.11191341,57864.0,57860.0,0.30487981]
[1617960696146,1.5,57862.0,57860.0,0.30487981]
[1617960696348,0.45098917,57861.0,57860.0,0.30487981]
[1617960696547,2.95098917,57861.0,57860.0,0.30487981]
[1617960697554,3.21998923,57861.0,57860.0,0.30487981]
[1617960697849,3.21998923,57861.0,57859.0,0.30534019]
[1617960698251,0.45038104,57860.0,57857.0,0.30492159]
[1617960698450,1.5,57859.0,57857.0,0.30492159]
[1617960699154,1.0,57858.0,57856.0,0.30504521]
[1617960699354,1.5,57857.0,57856.0,0.30504521]
[1617960700753,2.5,57857.0,57856.0,0.30504521]
[1617960701354,2.5,57857.0,57856.0,2.86054521]
[1617960702657,2.5,57857.0,57856.0,3.22638013]
[1617960703992,0.10725655,57861.0,57856.0,3.22638013]
[1617960704157,1.0,57857.0,57856.0,3.89270013]
[1617960704360,1.0,57857.0,57856.0,3.22182]
[1617960704557,1.0,57857.0,57856.0,2.92182]
[1617960704760,1.0,57857.0,57856.0,3.59236815]
[1617960705057,1.0,57857.0,57856.0,1.33686815]
[1617960705458,4.354,57857.0,57856.0,1.33686815]
[1617960705958,4.354,57857.0,57856.0,1.24054815]
[1617960706159,4.354,57857.0,57856.0,0.94054815]
[1617960706659,4.354,57857.0,57856.0,1.24054815]
[1617960707160,4.354,57857.0,57856.0,0.94054815]
[1617960707561,4.354,57857.0,57856.0,1.24054815]
[1617960708261,1.0,57857.0,57856.0,1.24054815]
[1617960709161,1.0,57857.0,57856.0,0.94054815]
[1617960709360,1.0,57857.0,57856.0,1.24054815]
[1617960710162,1.0,57857.0,57856.0,0.94054815]
[1617960711164,1.0,57857.0,57856.0,1.24054815]
[1617960712066,1.0007,57857.0,57856.0,1.24054815]
[1617960713167,1.0007,57857.0,57856.0,0.94054815]
[1617960719373,1.0007,57857.0,57856.0,0.27]
[1617960719574,1.45181961,57857.0,57856.0,0.94185297]
[1617960719774,1.45181961,57857.0,57856.0,0.67185297]
[1617960720073,1.45181961,57857.0,57856.0,0.94185297]
[1617960722676,0.45181961,57857.0,57856.0,0.94185297]
[1617960722876,1.0007,57857.0,57856.0,0.94185297]
[1617960723278,1.0007,57857.0,57856.0,1.24185297]
[1617960723475,1.0,57857.0,57856.0,1.24185297]
[1617960726897,1.0,57857.0,57856.0,0.94185297]
[1617960728082,1.0,57857.0,57856.0,1.24185297]
[1617960731487,3.52088038,57858.0,57856.0,1.24185297]
[1617960731688,1.0,57857.0,57856.0,1.24185297]
[1617960731887,1.0,57857.0,57856.0,0.94185297]
[1617960732088,1.0,57857.0,57856.0,0.27]
[1617960732288,1.0,57857.0,57856.0,0.57]
[1617960732490,1.0,57857.0,57856.0,0.97189839]
[1617960732789,1.0,57857.0,57856.0,1.24189839]
[1617960733989,4.3986,57857.0,57856.0,1.24189839]
[1617960736996,4.84981186,57857.0,57856.0,1.24189839]
[1617960738397,1.45121186,57857.0,57856.0,1.24189839]
[1617960738597,1.45121186,57857.0,57856.0,4.20393839]
[1617960741203,1.0,57857.0,57856.0,4.20393839]
[1617960741605,1.4513031,57857.0,57856.0,4.20393839]
[1617960746914,1.4513031,57857.0,57856.0,3.53204]
[1617960747115,1.4513031,57857.0,57856.0,4.00406699]
[1617960747614,1.4513031,57857.0,57856.0,4.45255094]
[1617960748614,0.4513031,57857.0,57856.0,4.45255094]
[1617960749216,0.45177784,57859.0,57856.0,4.45255094]
[1617960749716,0.45177784,57859.0,57858.0,1.12083177]
[1617960750118,0.45177039,57860.0,57858.0,1.39083177]
[1617960750618,0.45177039,57860.0,57859.0,1.18225923]
[1617960750817,0.45177039,57860.0,57859.0,1.48225923]
[1617960751017,0.45177039,57860.0,57859.0,1.75225923]
[1617960751422,0.45176009,57861.0,57859.0,1.75225923]
[1617960751618,0.45176009,57861.0,57860.0,2.9457]
[1617960752023,0.45176009,57861.0,57860.0,4.5050731]
[1617960752219,0.45176009,57861.0,57860.0,4.8050731]
[1617960752421,0.45176009,57861.0,57860.0,4.89753701]
[1617960752926,1.0,57865.0,57860.0,4.89753701]
[1617960752927,0.45153243,57862.0,57860.0,4.89753701]
[1617960753326,0.45153243,57862.0,57860.0,4.59753701]
[1617960753625,0.45153243,57862.0,57861.0,1.5739706]
[1617960755624,0.45153243,57862.0,57861.0,1.6264706]
[1617960756727,0.45153243,57862.0,57861.0,1.5739706]
[1617960758130,1.45153243,57862.0,57861.0,1.5739706]
[1617960760534,0.45153243,57862.0,57861.0,1.5739706]
[1617960760735,0.45153243,57862.0,57861.0,5.0988206]
[1617960760936,0.45153243,57862.0,57861.0,5.00635692]
[1617960761235,0.45153243,57862.0,57861.0,5.27635692]
[1617960761638,0.45146762,57865.0,57861.0,5.5688115]
[1617960761938,0.4514679,57867.0,57861.0,5.2688115]
[1617960762137,0.4514679,57867.0,57866.0,0.10725655]
[1617960762337,0.4514679,57867.0,57866.0,0.30725655]
[1617960762537,0.4514679,57867.0,57866.0,1.69654205]
[1617960762937,0.45145666,57868.0,57866.0,2.05817694]
[1617960763338,0.45145666,57868.0,57867.0,1.18082966]
[1617960763639,0.45145666,57868.0,57867.0,1.48082966]
[1617960763839,0.45145036,57869.0,57867.0,1.75082966]
[1617960764139,0.45145036,57869.0,57867.0,1.45082966]
[1617960764340,0.10725655,57870.0,57868.0,0.93233751]
[1617960764539,0.10725655,57870.0,57868.0,1.23233751]
[1617960764740,0.10725655,57870.0,57869.0,0.27]
[1617960764939,0.10725655,57870.0,57869.0,0.47]
[1617960765141,0.10725655,57870.0,57869.0,1.20194713]
[1617960765341,0.10725655,57870.0,57869.0,1.50194713]
[1617960765740,0.10725655,57870.0,57869.0,1.94873575]
[1617960768344,0.45085172,57876.0,57869.0,1.94873575]
[1617960768746,0.45085172,57876.0,57869.0,1.64873575]
[1617960768946,0.45085172,57876.0,57875.0,0.66973077]
[1617960769146,0.45085172,57876.0,57875.0,0.77939077]
[1617960769347,0.45068772,57878.0,57875.0,1.04939077]
[1617960769746,0.45068772,57878.0,57876.0,0.3]
[1617960769946,0.45068558,57879.0,57877.0,0.66925687]
[1617960770146,0.45068558,57879.0,57878.0,0.10725655]
[1617960770348,0.45068558,57879.0,57878.0,0.41143092]
[1617960770547,3.82488558,57879.0,57878.0,0.98143092]
[1617960770748,3.82488558,57879.0,57878.0,1.04305668]
[1617960771348,3.82488558,57879.0,57878.0,0.74305668]
[1617960772150,3.93214213,57879.0,57878.0,0.74305668]
[1617960772552,0.55794213,57879.0,57878.0,0.74305668]
[1617960772959,0.55794213,57879.0,57878.0,3.77373092]
[1617960773859,0.55794213,57879.0,57878.0,4.07373092]
[1617960774463,1.55794213,57879.0,57878.0,4.07373092]
[1617960775562,0.10725655,57879.0,57878.0,3.76955655]
[1617960776359,0.10725655,57879.0,57878.0,4.0734332]
[1617960780465,0.10725655,57879.0,57878.0,0.9811332]
[1617960780680,1.10725655,57879.0,57878.0,0.9811332]
[1617960781474,0.10725655,57879.0,57878.0,0.9811332]
[1617960784371,0.10725655,57879.0,57878.0,3.6926332]
[1617960789075,1.44972159,57886.0,57878.0,3.6926332]
[1617960789574,1.44972159,57886.0,57878.0,3.3926332]
[1617960789774,1.44972159,57886.0,57879.0,0.3]
[1617960790176,1.44972159,57886.0,57885.0,0.10725655]
[1617960790577,1.44972159,57886.0,57885.0,0.40725655]
[1617960790876,1.44972159,57886.0,57885.0,3.83435655]
[1617960791976,1.44972159,57886.0,57885.0,0.40725655]
[1617960792178,4.16372159,57886.0,57885.0,0.40725655]
[1617960792377,5.16372159,57886.0,57885.0,0.40725655]
[1617960792578,0.6052724,57886.0,57885.0,0.40725655]
[1617960792779,0.6052724,57886.0,57885.0,3.94625655]
[1617960792977,0.6052724,57886.0,57885.0,4.21625655]
[1617960793588,0.44972159,57886.0,57885.0,4.41625655]
[1617960793881,0.4497874,57888.0,57885.0,4.41625655]
[1617960794080,0.4497874,57888.0,57885.0,4.21625655]
[1617960794280,0.44978377,57889.0,57885.0,3.91625655]
[1617960794478,0.44978377,57889.0,57886.0,0.2]
[1617960794679,0.44978377,57889.0,57886.0,0.3]
[1617960794879,0.44978322,57890.0,57888.0,3.6592]
[1617960795379,0.55454741,57891.0,57889.0,0.57]
[1617960795781,0.55454741,57891.0,57889.0,0.27]
[1617960796083,0.10476308,57891.0,57890.0,0.3]
[1617960796483,0.10476308,57891.0,57890.0,0.57]
[1617960813101,0.10476308,57891.0,57890.0,0.87327815]
[1617960816626,0.10476308,57891.0,57890.0,0.57327815]
[1617960816627,3.32717308,57891.0,57890.0,0.57327815]
[1617960816863,4.32717308,57891.0,57890.0,0.57327815]
[1617960817207,4.32717308,57891.0,57890.0,0.27]
[1617960817208,4.77740581,57891.0,57890.0,0.27]
[1617960817605,4.77740581,57891.0,57889.0,0.27]
[1617960818005,4.77740581,57891.0,57887.0,0.30364188]
[1617960818006,3.77740581,57891.0,57890.0,0.27]
[1617960818304,1.0,57890.0,57888.0,0.27]
[1617960818704,1.5,57887.0,57885.0,0.41103729]
[1617960818905,1.5,57887.0,57885.0,0.10725655]
[1617960819305,0.450352,57886.0,57885.0,0.10725655]
[1617960819507,1.950352,57886.0,57885.0,0.10725655]
[1617960819718,1.950352,57886.0,57885.0,0.37725655]
[1617960820106,1.450352,57886.0,57885.0,0.37725655]
[1617960820506,1.55760855,57886.0,57885.0,0.37725655]
[1617960821315,1.55760855,57886.0,57885.0,3.34735655]
[1617960821507,1.55760855,57886.0,57885.0,3.64735655]
[1617960823713,1.55760855,57886.0,57885.0,0.67725655]
[1617960823913,1.55760855,57886.0,57885.0,0.37725655]
[1617960824115,1.55760855,57886.0,57885.0,0.68181378]
[1617960825116,1.55760855,57886.0,57885.0,0.67725655]
[1617960825915,1.71419575,57886.0,57885.0,0.98186141]
[1617960826519,1.55760855,57886.0,57885.0,1.10610141]
[1617960828723,1.55760855,57886.0,57885.0,4.60060141]
[1617960829123,0.55760855,57886.0,57885.0,4.60060141]
[1617960829926,0.55760855,57886.0,57885.0,4.96598721]
[1617960830426,0.10725655,57886.0,57885.0,4.96598721]
[1617960830826,0.45094524,57887.0,57885.0,1.47148721]
[1617960831226,0.45093613,57888.0,57886.0,4.04732131]
[1617960831526,0.45093613,57888.0,57886.0,4.34732131]
[1617960831728,0.45093613,57888.0,57887.0,1.00090292]
[1617960832129,0.45093186,57889.0,57888.0,3.2918]
[1617960832530,0.1565861,57890.0,57888.0,3.3018]
[1617960833130,1.10476308,57891.0,57889.0,1.03096596]
[1617960833630,1.10476308,57891.0,57890.0,0.27]
[1617960833832,1.10476308,57891.0,57890.0,0.57]
[1617960834030,1.10476308,57891.0,57890.0,0.93588139]
[1617960834431,1.55569098,57891.0,57890.0,0.93588139]
[1617960835733,1.55569098,57891.0,57890.0,1.301149]
[1617960838742,0.55569098,57891.0,57890.0,1.001149]
[1617960839840,0.55569098,57891.0,57890.0,1.301149]
[1617960840141,0.55569098,57891.0,57890.0,0.93588139]
[1617960840844,1.55569098,57891.0,57890.0,0.93588139]
[1617960841145,1.55569098,57891.0,57890.0,3.86778139]
[1617960843446,1.55569098,57891.0,57890.0,4.23311571]
[1617960844846,0.55569098,57891.0,57890.0,1.30121571]
[1617960845046,1.55569098,57891.0,57890.0,1.30121571]
[1617960847650,1.10476308,57891.0,57890.0,1.30121571]
[1617960847847,1.71137472,57891.0,57890.0,1.30121571]
[1617960848047,1.26003054,57891.0,57890.0,1.30121571]
[1617960848349,1.55610779,57891.0,57890.0,1.30121571]
[1617960848548,1.5561077,57891.0,57890.0,1.30121571]
[1617960849148,1.10476308,57891.0,57890.0,1.30121571]
[1617960849448,1.71137488,57891.0,57890.0,1.30121571]
[1617960849848,1.55610734,57891.0,57890.0,1.30121571]
[1617960852356,0.55610734,57891.0,57890.0,1.30121571]
[1617960852555,1.55610734,57891.0,57890.0,1.30121571]
[1617960856857,0.55610734,57891.0,57890.0,4.30701571]
[1617960857057,1.55610734,57891.0,57890.0,4.30701571]
[1617960857758,1.92534259,57891.0,57890.0,4.30701571]
[1617960867970,0.92534259,57891.0,57890.0,4.30701571]
[1617960869872,1.92534259,57891.0,57890.0,4.30701571]
[1617960870474,1.92534259,57891.0,57890.0,1.30121571]
[1617960870673,5.54619914,57891.0,57890.0,1.00121571]
[1617960871278,5.71608002,57891.0,57890.0,0.63588139]
[1617960871490,5.71608002,57891.0,57890.0,0.36588139]
[1617960871685,7.72879938,57891.0,57890.0,0.30426641]
[1617960872175,7.72879938,57891.0,57888.0,0.30481891]
[1617960872675,7.72879938,57891.0,57885.0,0.47303924]
[1617960872676,1.0,57889.0,57885.0,0.41223454]
[1617960873076,1.33323345,57886.0,57885.0,0.41223454]
[1617960873577,2.33323345,57886.0,57885.0,0.10725655]
[1617960873976,2.39484829,57886.0,57885.0,0.41230101]
[1617960879985,2.39484829,57886.0,57885.0,0.10725655]
[1617960881989,2.39484829,57886.0,57885.0,0.22989655]
[1617960882189,0.88208197,57886.0,57885.0,0.22989655]
[1617960882488,1.88208197,57886.0,57885.0,0.52989655]
[1617960882689,1.82046713,57886.0,57885.0,3.64611565]
[1617960883189,1.8820795,57886.0,57885.0,3.64611565]
[1617960883889,1.8820795,57886.0,57885.0,3.34611565]
[1617960884692,2.39445228,57886.0,57885.0,3.04139655]
[1617960885490,2.50908228,57886.0,57885.0,3.04139655]
[1617960886591,1.50908228,57886.0,57885.0,3.04139655]
[1617960886792,2.39445228,57886.0,57885.0,0.22989655]
[1617960886992,2.49150228,57886.0,57885.0,0.10725655]
[1617960890895,1.9791295,57886.0,57885.0,0.10725655]
[1617960891296,2.3942847,57886.0,57885.0,3.66789655]
[1617960891696,1.8820795,57886.0,57885.0,3.66789655]
[1617960892499,1.8820795,57886.0,57885.0,4.27254719]
[1617960893298,0.8820795,57886.0,57885.0,4.27254719]
[1617960893498,0.8820795,57886.0,57885.0,4.63792769]
[1617960893697,1.8820795,57886.0,57885.0,4.63792769]
[1617960893899,1.36922046,57886.0,57885.0,4.63792769]
[1617960894299,1.43082744,57886.0,57885.0,4.63792769]
[1617960896899,1.43082744,57886.0,57885.0,1.20072769]
[1617960897198,1.43082744,57886.0,57885.0,0.90072769]
[1617960897600,1.43082744,57886.0,57885.0,1.20072769]
[1617960897804,0.43082744,57886.0,57885.0,1.20072769]
[1617960898202,0.36922046,57886.0,57885.0,1.20072769]
[1617960899802,1.36922046,57886.0,57885.0,1.20072769]
[1617960900305,1.43082591,57886.0,57885.0,1.20072769]
[1617960902203,1.43082591,57886.0,57885.0,4.67672769]
[1617960903305,0.43082591,57886.0,57885.0,4.67672769]
[1617960903906,0.36922046,57886.0,57885.0,4.67672769]
[1617960909113,0.36922046,57886.0,57885.0,1.20072769]
[1617960910213,0.82008314,57886.0,57885.0,1.20072769]
[1617960913519,0.36922046,57886.0,57885.0,1.20072769]
[1617960922231,0.36922046,57886.0,57885.0,4.03492769]
[1617960926536,0.82009532,57886.0,57885.0,4.03492769]